{"text_format":"1","workbook":"xlsx","n_sheets":1,"sheets":["conceptos"],"not_rendered":{"charts":0,"images":2,"macros":1,"external_links":0,"defined_names":1,"comments":0,"pivot_tables":0},"unopened":[],"bounds":{"document_bytes":16777216,"sheet_cells":100000,"rows_first":2000,"rows_last":500,"rows_between":2000,"halvings":0,"cell_chars":16384,"cell_head_chars":4096},"cells_cut":0,"cells_raw":0,"read":"whole","date_system":"1900"}

{"sheet":"conceptos","index":0,"n_rows":57,"n_cols":8,"rows_kept":57,"cut":false,"hidden":false,"merged":[[54,0,54,4],[55,0,56,4],[13,0,13,6],[0,2,0,5],[9,2,9,5],[1,2,3,5],[4,2,4,3],[6,2,6,3],[7,2,7,3],[4,4,4,5],[5,4,5,5],[6,4,6,5],[7,4,7,5],[10,2,10,5],[11,2,11,5],[5,1,8,1]]}
[null,"GOBIERNO DEL ESTADO DE JALISCO","LICITACIÓN PÚBLICA ESTATAL"]
[null,"INSTITUTO DE LA INFRAESTRUCTURA FÍSICA EDUCATIVA DEL","E-REM-S-CON-03953-LP-0072-2020"]
[null,"ESTADO DE JALISCO"]
[]
[null,"DESCRIPCIÓN GENERAL DE LOS TRABAJOS:","FECHA DE INICIO:"]
[null,null,null,"FECHA DE TERMINACIÓN:"]
[null,null,"PLAZO DE EJECUCIÓN:"]
[null,null,"FECHA:"]
[]
[null,"RAZÓN SOCIAL DEL LICITANTE:","NOMBRE, CARGO Y FIRMA DEL LICITANTE:",null,null,null,"DOCUMENTO"]
[]
[]
[]
["PRESUPUESTO DE OBRA"]
[]
["CLAVE","DESCRIPCIÓN","UNIDAD","CANTIDAD","PRECIO UNITARIO ($)","PRECIO UNITARIO ($) CON LETRA","IMPORTE ($) M.N."]
["TRABAJO : SUP-CON-03953","CONTINUACIÓN DE EDIFICIO DE LABORATORIOS DE INGENIERÍAS EN EL CENTRO UNIVERSITARIO DEL NORTE, CCT 14USU0002Z, UBICADO EN EL MUNICIPIO DE COLOTLÁN, JALISCO.",null,null,null,null,{"$f":"TEXT(SUM(G18 + G40), \"$ #,##0.00 ;\")","v":"$ 0.00 "}]
["L","EDIFICIO L",null,null,null,null,{"$f":"TEXT(SUM(G19 + G21 + G23 + G30), \"$ #,##0.00 ;\")","v":"$ 0.00 "}]
["L.01(319)","ENTREPISOS, CUBIERTA Y ACABADOS DE AZOTEA         ",null,null,null,null,{"$f":"TEXT(SUM(G20:G20), \"$ #,##0.00 ;\")","v":"$ 0.00 "}]
[907624,"SUMINISTRO DE MOLDURA DE LAMINA PINTRO CAL 24, DE 40 CM. DE DESARROLLO, INCLUYE: TRAZO, CORTES, AJUSTES, DOBLECES, PERFILADO, ELEMENTOS DE FIJACION, RONDANAS, NEOPRENOS, SELLADO PERIMETRAL CON SIKAFLEX 1-A, TRASLAPES, DESPERDICIOS,  HERRAMIENTAS, ANDAMIOS,  LIMPIEZA, MANO DE OBRA Y ACARREO DE MATERIALES AL SITIO DE SU COLOCACION A CUALQUIER NIVEL.","ML ","292.0000",0,"CERO PESOS 00/100 M.N.",0,264226]
["L.02(393)","PINTURA                                           ",null,null,null,null,{"$f":"TEXT(SUM(G22:G22), \"$ #,##0.00 ;\")","v":"$ 0.00 "}]
[393325,"PINTURA DE ESMALTE ALQUIDALICO ANTICORROSIVO, ACABADO BRILLANTE, PARA INTERIORES Y EXTERIORES QUE NO DESPRENDA VAPORES TÓXICOS NI OLORES DESAGRADABLES, CON LAS SIGUIENTES CARACTERÍSTICAS ( SÓLIDOS POR PESO 49-60%, SÓLIDOS POR VOLUMEN 40-46%, VISCOSIDAD DE 110-160 UK A 25°C, DENSIDAD 0.9-1.2 TON/M3., BRILLO A 60°C, 90%, TIEMPO DE SECADO AL TACTO, < O = 6 HRS., TIEMPO DE SECADO DURO < O = 24 HRS., ADHERENCIA 100%, DILUCIÓN MÁXIMA (AGUARRÁS, THINER), 15 %,  EN BARANDAL METALICO, EN COLOR DE ACUERDO A INDICADO POR SUPERVISIÓN MEDIDO POR UN SOLO LADO, TRABAJO TERMINADO, A DOS MANOS, INCLUYE: MATERIALES MENORES Y DE CONSUMO, PREPARACION DE LA SUPERFICIE, ANDAMIOS, HERRAMIENTAS, LIMPIEZA, MANO DE OBRA Y  EQUIPO DE SEGURIDAD. CUALQUIER ALTURA..","M2 ","300.0000",0,"CERO PESOS 00/100 M.N.",0,264227]
["L.03(410)","CANCELERIA, HERRERIA, ALUMINIO, VIDRIOS Y CHAPAS  ",null,null,null,null,{"$f":"TEXT(SUM(G24:G29), \"$ #,##0.00 ;\")","v":"$ 0.00 "}]
[412013,"SUMINISTRO, FABRICACION Y COLOCACION DE HERRERIA TUBULAR Y/O ESTRUCTURAL, INCLUYE: SOLDADURA, ELEMENTOS DE FIJACION, MATERIALES MENORES, DESCALIBRES, DESPERDICIOS, BISAGRAS, FONDO ANTICORROSIVO, FLETES, HERRAMIENTAS, EQUIPO, MANO DE OBRA  Y ACARREO DE MATERIALES AL SITIO DE SU UTLIZACION.","KG ","2,430.0000",0,"CERO PESOS 00/100 M.N.",0,264225]
[412223,"FABRICACION, SUMINISTRO Y COLOCACION DE PASAMANOS Y/O BARANDAL  A BASE DE TUBO REDONDO DE ACERO, CED. 30 EN DIFERENTES DIAMETROS, INCLUYE:  MATERIAL DE FIJACION, SOLDADURA, PLOMEADO, NIVELADO, AJUSTES, DESCALIBRES, DESPERDICIOS, PINTURA PRIMARIO ROJO ANTICORROSIVO, CORTES,  ANCLAS, PLACAS,  FLETES, MANO DE OBRA, HERRAMIENTAS Y ACARREO DE MATERIALES AL SITIO DE SU COLOCACION, A CUALQUIER NIVEL.","KG ","1,599.0000",0,"CERO PESOS 00/100 M.N.",0,264228]
[420017,"SUMINISTRO, HABILITADO Y COLOCACION DE CANCELERIA FABRICADA  EN ALUMINIO ANODIZADO EN COLOR NEGRO MATE CON PERFILES COMERCIALES DE 3\" X 1.25\",  MCA. CUPRUM,  LINEA PANORAMA O SIMILAR, INCLUYE: TRAZO, CORTES, AJUSTES, MATERIALES, CORREDERAS, JALADERAS, OPERADORES, REPISON, SELLADO PERIMETRAL, SILICON, VINIL, HERRAJES, ELEMENTOS DE FIJACION, MATERIALES MENORES Y DE CONSUMO, DESPERDICIOS, HERRAMIENTAS, MANO DE OBRA ESPECIALIZADA, LIMPIEZA, FLETES, EQUIPO Y ACARREO DE MATERIALES AL SITIO DE SU COLOCACION, A CUALQUIER NIVEL.","M2 ","110.5000",0,"CERO PESOS 00/100 M.N.",0,264229]
[422073,"SUMINISTRO Y COLOCACION DE MULTYPUERTA DE 0.90 X 2.10 M. INCLUYE: MARCO, JAMBA Y CUBRECANTOS DE ALUMINIO NEGRO MATE, HERRAJES, ELEMENTOS DE FIJACION, MATERIALES MENORES, SELLADO PERIMETRAL, HERRAMIENTAS, AJUSTES, NIVELACION, LIMPIEZA, MANO DE OBRA, FLETES Y ACARREOS DE MATERIALES AL SITIO DE SU COLOCACION, A CUALQUIER NIVEL.","PZA","22.0000",0,"CERO PESOS 00/100 M.N.",0,264230]
[426010,"SUMINISTRO Y COLOCACION DE CRISTAL FLOTADO DE 6 MM. DE ESPESOR,  ASENTADO CON SILICON, INCLUYE: CORTES, DESPERDICIOS Y ACARREO DE MATERIALES AL SITIO DE SU UTILIZACION A CUALQUIER NIVEL.","M2 ","60.0000",0,"CERO PESOS 00/100 M.N.",0,264231]
[931596,"SUMINISTRO Y COLOCACION DE CRISTAL FLOTADO CLARO DE 9 MM. DE ESPESOR, ASENTADO CON SILICON,  INCLUYE: CORTES, DESPERDICION, MANO DE OBRA, LIMPIEZA,  ACARREO DE MATERIALES AL SITIO DE SU UTILIZACION,  A CUALQUIER NIVEL.","M2 ","50.5000",0,"CERO PESOS 00/100 M.N.",0,264232]
["L.04(510)","INSTALACION ELECTRICA EN EDIFICIO                 ",null,null,null,null,{"$f":"TEXT(SUM(G31:G39), \"$ #,##0.00 ;\")","v":"$ 0.00 "}]
[514720,"SALIDA ELECTRICA DE CENTRO AISLADA, VISIBLE, CON TUBERIA Y CONEXIONES CONDUIT GALVANIZADA P.G., ROSCADA DE 13 Y 19  MM. DE DIAMETRO,  CABLE VINANEL THW-LS 600 V. A 75° C, 90° C, MARCA CONDUCTORES MONTERREY, (VIAKON-PROTOCOLIZADO), CABLE VINANEL 21 THW-LS 600 V. A 75° C, 90° C, MARCA CONDUMEX (CONDUMEX PROTOCOLIZADO).  CALIBRE 10 Y 12, CONDULET CON TAPA Y EMPAQUE DE 13 Y 19 MM., INCLUYE: MATERIALES MENORES, PRUEBAS, DESPERDICIOS Y ACARREO DEL MATERIAL AL SITIO DE SU COLOCACION, A CUALQUIER NIVEL.","SAL","83.0000",0,"CERO PESOS 00/100 M.N.",0,264233]
[516152,"SALIDA ELECTRICA DE FUERZA, PARA SERVICIO TRIFASICO, VISIBLE, PARA ALIMENTACION CONTACTOS DE SERVICIO Y EQUIPOS, FORMADA CON TUBERIA CONDUIT GALVANIZADA ROSCADA, ETIQUETA AMARILLA DE 19, 25 Y 32 MM DE DIAM, CONDULET OVALADOS Y/O RECTANGULARES  COMO REGISTRO DE PASO O SERVICIO, CON TAPA Y EMPAQUE DOMEX, CABLE VINANEL THW-LS 600 V. A 75° C, 90° C, MARCA CONDUCTORES MONTERREY, (VIAKON-PROTOCOLIZADO), CABLE VINANEL 21 THW-LS 600 V. A 75° C, 90° C, MARCA CONDUMEX (CONDUMEX PROTOCOLIZADO). CAL 8, 10 Y 12 , INCLUYE: CONEXION A TIERRA, ACCESORIOS, TAPAS, CONTACTO TRIFASICO CON SEGURO DE MEDIA VUELTA, FIJACION, MATERIALES MENORES, NIVELACION, TRAZO, AJUSTES, DESPERDICIOS, MATERIALES MENORES, PRUEBAS, HERRAMIENTAS, MANO DE OBRA Y ACARREOS.(DISTANCIA TOMADA DESDE EL DUCTO CUADRADO HASTA EL SERVICIO).","SAL","24.0000",0,"CERO PESOS 00/100 M.N.",0,264234]
[518086,"SALIDA ELECTRICA DE PARA CONTACTO BIFASICO CONTIERRA FISICA TIPO INDUSTRIAL EN LABORATORIO O TALLER, VISIBLE,  FORMADA CON TUBERIA CONDUIT GALVANIZADA DE AJUSTE, ETIQUETA VERDE DE 19 Y 25 MM DE DIAM, CONDULET RECTANGULAR FS Y FST, CABLE  CABLE VINANEL THW-LS 600 V. A 75° C, 90° C, MARCA CONDUCTORES MONTERREY, (VIAKON-PROTOCOLIZADO), CABLE VINANEL 21 THW-LS 600 V. A 75° C, 90° C, MARCA CONDUMEX (CONDUMEX PROTOCOLIZADO).  CAL 10 FASES Y 12 PARA TIERRA FISICA,  TAPAS TIPO INDUSTRIAL CON HULE DE NEOPRENO, INCLUYE: CONEXION A TIERRA, ACCESORIOS, TAPAS, CONTACTOS BIFASICO CON SEGURO DE MEDIA VUELTA, FIJACION, MATERIALES MENORES, NIVELACION, TRAZO, AJUSTES, DESPERDICIOS, MATERIALES MENORES, PRUEBAS, HERRAMIENTAS, MANO DE OBRA Y ACARREOS.(DISTANCIA TOMADA DESDE EL DUCTO CUADRADO HASTA EL SERVICIO).","SAL","24.0000",0,"CERO PESOS 00/100 M.N.",0,264235]
[518122,"SALIDA ELECTRICA PARA CONTACTO DUPLEX POLARIZADO, VISIBLE CON TUBERIA Y CONEXIONES CONDUIT GALVANIZADA P.G. ETIQUETA VERDE DE AJUSTE DE 13 Y 19 MM. DE DIAMETRO CABLE VINANEL THW-LS 600 V. A 75° C, 90° C, MARCA CONDUCTORES MONTERREY, (VIAKON-PROTOCOLIZADO), CABLE VINANEL 21 THW-LS 600 V. A 75° C, 90° C, MARCA CONDUMEX (CONDUMEX PROTOCOLIZADO) CALIBRE 10 Y 12 CAJAS CUADRADAS, CHALUPAS Y TAPAS GALVANIZADAS, CONTACTO QUIZIÑO, TAPA DE ALUMINIO, INCLUYE; CONEXIONES A TIERRA, MATERIALES MENORES, PRUEBAS, DESPERDICIOS Y ACARREO DEL MATERIAL AL SITIO DE SU COLOCACION A CUALQUIER NIVEL.","SAL","152.0000",0,"CERO PESOS 00/100 M.N.",0,264236]
[522020,"SALIDA ELECTRICA DE APAGADOR, OCULTA, CON TUBERIA Y CONEXIONES CONDUIT GALVANIZADA P.G., ETIQUETA VERDE DE AJUSTE DE 13 Y 19 MM. DE DIAMETRO, CABLE VINANEL THW-LS 600 V. A 75° C, 90° C, MARCA CONDUCTORES MONTERREY, (VIAKON-PROTOCOLIZADO), CABLE VINANEL 21 THW-LS 600 V. A 75° C, 90° C, MARCA CONDUMEX (CONDUMEX PROTOCOLIZADO). CALIBRE 10 Y 12, CAJAS CUADRADAS, CHALUPAS Y TAPAS GALVANIZADAS, APAGADOR QUINZIÑO, TAPA DE ALUMINIO, INCLUYE: MATERIALES MENORES, PRUEBAS, DESPERDICIOS Y ACARREO DEL MATERIAL AL SITIO DE SU COLOCACION, A CUALQUIER NIVEL.","SAL","12.0000",0,"CERO PESOS 00/100 M.N.",0,264237]
[534119,"SUMINISTRO Y COLOCACION DE TUBO CONDUIT GALVANIZADO, DE 13 MM, PARED DELGADA DE AJUSTE ETIQUETA VERDE, INCLUYE: TRAZO, CORTES, AJUSTES, CONECTORES, COPLES, CURVAS, DOBLECES, DESPERDICIOS, MATERIALES MENORES, HERRAMIENTAS, PRUEBAS, LIMPIEZA, MANO DE OBRA Y ACARREO DE MATERIALES AL SITIO DE SU COLOCACION.","ML ","1,175.0000",0,"CERO PESOS 00/100 M.N.",0,264238]
[534122,"SUMINISTRO Y COLOCACION DE TUBO CONDUIT GALVANIZADO, DE 19 MM, PARED DELGADA DE AJUSTE ETIQUETA VERDE, INCLUYE: TRAZO, CORTES, AJUSTES, CONECTORES, COPLES, CURVAS, DOBLECES, DESPERDICIOS, MATERIALES MENORES, HERRAMIENTAS, PRUEBAS, LIMPIEZA, MANO DE OBRA Y ACARREO DE MATERIALES AL SITIO DE SU COLOCACION.","ML ","1,175.0000",0,"CERO PESOS 00/100 M.N.",0,264239]
[536006,"SUMINISTRO Y COLOCACION DE CABLE VINANEL THW-LS 600 V. A 75° C, 90° C, MARCA CONDUCTORES MONTERREY, (VIAKON-PROTOCOLIZADO), CABLE VINANEL 21 THW-LS 600 V. A 75° C, 90° C, MARCA CONDUMEX (CONDUMEX PROTOCOLIZADO). CAL. 12,  INCLUYE: DESPERDICIOS, MATERIALES MENORES, HERRAMIENTA, CONEXIONES, MANO DE OBRA ESPECIALIZADA, LIMPIEZA DEL AREA DE TRABAJO, PRUEBAS Y ACARREO AL SITIO DE SU COLOCACION.","ML ","455.0000",0,"CERO PESOS 00/100 M.N.",0,264240]
[975398,"SUMINISTRO Y COLOCACION DE LAMPARA COMPACTA PARA EMPOTRAR EN PLAFON, ECONOMIZADORA LUZ LED DE 60 X 60 DE 40 WATTS, MARCA BET LIGHTING LED MODELO BET-SS-LED-40W INCLUYE: SUMINISTRO Y COLOCACION SUSPENDIDA CON CABLE DE ACERO DE LOSACERO, COLOR BLANCO, CONEXION CON CABLE USO RUDO CAL 12, FIJACION, CONEXION, NIVELACION, MATERIALES MENORES, HERRAMIENTAS, MANO DE OBRA, PRUEBAS, MATERIALES DE FIJACION Y ACARREO DE MATERIALES AL SITIO DE SU COLOCACION. EN CULAQUIER NIVEL.\n","PZA","178.0000",0,"CERO PESOS 00/100 M.N.",0,264241]
[73,"REJAS Y BARANDALES",null,null,null,null,{"$f":"TEXT((G41), \"$ #,##0.00 ;\")","v":"$ 0.00 "}]
["73.01(428)","ACOTAMIENTO PERIMETRAL                            ",null,null,null,null,{"$f":"TEXT(SUM(G42:G44), \"$ #,##0.00 ;\")","v":"$ 0.00 "}]
[918276,"SUMINISTRO Y COLOCACION DE REJA METALICA PREFABRICADA, MCA. DEACERO, CERCASEL O SIMILAR, DE 2.00 MTS. DE ALTURA, FABRICADA CON UNA VARILLA DE ALAMBRE LISO GALVANIZADO CALIBRE 6 (4.9 MM. DE DIAMETRO), EN FORMA VERTICAL A CADA 5 CM., Y HORIZONTAL A CADA 20 CM., CON CUATRO PLIEGUES DE REFUERZO A TODO LO LARGO DE LA REJA, CON ACABADO EN PINTURA ELECTROSTATICA DE POLIESTER TERMOENDURECIDO DE COLOR INDICADO POR LA SUPERVISION, INCLUYE: CORTES, AJUSTES, ELEMENTOS DE FIJACION, MATERIALES MENORES Y DE CONSUMO, NIVELACION, PLOMEO, CARGA Y DESCARGA, TRANSPORTACION, MANIOBRAS, DESPERDICIOS, LIMPIEZA Y MANO DE OBRA.\n","ML ","125.0000",0,"CERO PESOS 00/100 M.N.",0,264242]
[918279,"SUMINISTRO Y COLOCACION DE POSTE METALICO TUBULAR DE 2 1/4 2 2 1/4\" EN CALIBRE 16, MCA. DEACERO, CERCASEL O SIMILAR, DE 2.00 MTS. DE ALTURA TOTAL, CON ACABADO EN PINTURA ELESTROSTATICA DE POLIESTER TERMOENDURECIDO DE COLOR INDICADO POR LA SUPERVISION, ANCLADO A ESTRUCTURA MEDIANTE VARILLA ROSCADA DE 1/2\" + EPOXICO, INCLUYE: ABRAZADERA DE PLASTICO REFORZADO PARA FIJACION DE MALLA (5 PIEZAS), TAPA SUPERIOR DE PLASTICO REFORZADO, TORNILLERIA, ELEMENTOS DE FUJACION, MATERIALES MENORES Y DE CONSUMO, NIVELACION, PLOMEO, CARGA Y DESCARGA, TRANSPORTACION, MANIOBRAS, DESPERDICIOS, LIMPIEZA Y MANO DE OBRA.\n","PZA","51.0000",0,"CERO PESOS 00/100 M.N.",0,264243]
[928726,"SUMINISTRO, COLOCACION PUERTA O PORTON DE DOS HOJAS CON MEDIDAS GENERALES TOTALES DE 2.00 MTS DE ANCHO X 2.50 MTS. DE ALTO,  FABRICADO A BASE DE MARCOS DE PERFILTUBULAR DE 2 1/4\" X 2 1/4\" EN CALIBRE. 16, Y REJA PREFABRICADA DE ACERO ARMADA CON UNA VARILLA DE ALAMBRE LISO GALVANIZADO CALIBRE  6, EN FORMA VERTICAL A CADA 5 CM., Y HORIZONTAL A CADA 20 CM., CON CUATRO PLIEGUES DE REFUERZO A TODO LO LARGO DE LA REJA, ACABADO EN POLIESTER TERMOENDURECIDO DE COLOR, INCLUYE: SOLDADURAS, DIAGONALES Y REFUERZOS HORIZONTALES DE PERFIL TUBULAR CAL. 16, CERROJO, PORTACANDADO, PICAPORTE, BISAGRAS, POSTES PARA FIJACION, ANCLAS, BASES DE CONCRETO,  NIVELACION, PLOMEO, HERRAJES, DESPERDICIOS, HERRAMIENTAS, EQUIPO,  MATERIALES, MANO DE OBRA CALIFICADA, Y ACARREOS AL SITIO DE SU COLOCACION.","PZA","3.0000",0,"CERO PESOS 00/100 M.N.",0,264244]
[null,"RESUMEN DE PARTIDAS"]
["SUP-CON-03953","CONTINUACIÓN DE EDIFICIO DE LABORATORIOS DE INGENIERÍAS EN EL CENTRO UNIVERSITARIO DEL NORTE, CCT 14USU0002Z, UBICADO EN EL MUNICIPIO DE COLOTLÁN, JALISCO.",null,null,null,null,{"$f":"G17","v":"$ 0.00 "}]
["L","EDIFICIO L",null,null,null,null,{"$f":"G18","v":"$ 0.00 "}]
["L.01(319)","ENTREPISOS, CUBIERTA Y ACABADOS DE AZOTEA         ",null,null,null,null,{"$f":"G19","v":"$ 0.00 "}]
["L.02(393)","PINTURA                                           ",null,null,null,null,{"$f":"G21","v":"$ 0.00 "}]
["L.03(410)","CANCELERIA, HERRERIA, ALUMINIO, VIDRIOS Y CHAPAS  ",null,null,null,null,{"$f":"G23","v":"$ 0.00 "}]
["L.04(510)","INSTALACION ELECTRICA EN EDIFICIO                 ",null,null,null,null,{"$f":"G30","v":"$ 0.00 "}]
[73,"REJAS Y BARANDALES",null,null,null,null,{"$f":"G40","v":"$ 0.00 "}]
["73.01(428)","ACOTAMIENTO PERIMETRAL                            ",null,null,null,null,{"$f":"G41","v":"$ 0.00 "}]
[]
["IMPORTE CON LETRA (IVA INCLUIDO)",null,null,null,null,"SUBTOTAL M.N.",{"$f":"TEXT(G17,  \"$ #,##0.00 ;\")","v":"$ 0.00 "}]
[{"$f":"UPPER(CONVERTIRNUM(ROUND( G17 * 1.16, 2)))","v":"CERO PESOS 00/100 M.N."},null,null,null,null,"IVA M.N.",{"$f":"TEXT(ROUND( G17 * 0.16, 2),  \"$ #,##0.00 ;\")","v":"$ 0.00 "}]
[null,null,null,null,null,"TOTAL M.N.",{"$f":"TEXT(ROUND( G17 * 1.16, 2),  \"$ #,##0.00 ;\")","v":"$ 0.00 "}]